fUSD/lending_fUSD_20240719
["ID","MTS","AMOUNT","RATE_DAILY","PERIOD"]
[332627902,1721374277401,-597.01,0.00032876,14]
[332627903,1721374277411,-783.69,0.00032876,14]
[332627904,1721374277420,-590.27,0.00032876,14]
[332627905,1721374277430,-866.85,0.00032876,14]
[332627906,1721374277439,-500.0,0.00032876,14]
[332627907,1721374277449,-3470.76,0.00032876,14]
[332627908,1721374277459,-2242.37,0.00032876,14]
[332627909,1721374277468,-501.12,0.00032876,14]
[332627910,1721374277478,-500.0,0.00032876,14]
[332627911,1721374277487,-7579.61,0.00032876,14]
[332627912,1721374277498,-2671.8,0.00032876,14]
[332627913,1721374277508,-500.0,0.00032876,14]
[332627914,1721374277518,-1458.44,0.00032876,14]
[332627915,1721374277528,-3379.93,0.00032876,14]
[332627916,1721374277538,-850.9,0.00032876,14]
[332627917,1721374277548,-1778.9,0.00032876,14]
[332627918,1721374277558,-782.77,0.00032876,14]
[332627919,1721374277568,-983.6,0.00032876,14]
[332627920,1721374277577,-2276.75,0.00032876,14]
[332627921,1721374277587,-2517.04,0.00032876,14]
[332627922,1721374277599,-1306.08,0.00032876,14]
[332627923,1721374277609,-528.52,0.00032876,14]
[332627924,1721374277619,-500.0,0.00032876,14]
[332627925,1721374277629,-500.0,0.00032876,14]
[332627926,1721374277639,-612.81,0.00032876,14]
[332627927,1721374277648,-2573.03,0.00032876,14]
[332627928,1721374277658,-500.0,0.00032876,14]
[332627929,1721374277667,-500.0,0.00032876,14]
[332627930,1721374277677,-1623.35,0.00032876,14]
[332627931,1721374277687,-662.31,0.00032876,14]
[332627932,1721374277696,-944.06,0.00032876,14]
[332627933,1721374277706,-4158.79,0.00032876,14]
[332627934,1721374277715,-5613.75,0.00032876,14]
[332627935,1721374277725,-5613.75,0.00032876,14]
[332627936,1721374277735,-500.0,0.00032876,14]
[332627937,1721374277744,-500.0,0.00032876,14]
[332627938,1721374277754,-5613.75,0.00032876,14]
[332627939,1721374277763,-5613.75,0.00032876,14]
[332627940,1721374277773,-5613.75,0.00032876,14]
[332627941,1721374277783,-2052.86,0.00032876,14]
[332627942,1721374277793,-823.61,0.00032876,14]
[332627943,1721374277803,-4173.55,0.00032876,14]
[332627944,1721374277813,-5613.75,0.00032876,14]
[332627945,1721374277823,-5613.75,0.00032876,14]
[332627946,1721374277833,-5613.75,0.00032876,14]
[332627947,1721374277842,-5613.75,0.00032876,14]
[332627948,1721374277852,-5613.75,0.00032876,14]
[332627949,1721374277861,-3312.59,0.00032876,14]
[332627950,1721374277871,-500.0,0.00032876,14]
[332627951,1721374277881,-5613.75,0.00032876,14]
[332627952,1721374277890,-5613.75,0.00032876,14]
[332627953,1721374277900,-5613.75,0.00032876,14]
[332627954,1721374277911,-5613.75,0.00032876,14]
[332627955,1721374277920,-500.0,0.00032876,14]
[332627956,1721374277930,-5613.75,0.00032876,14]
[332627957,1721374277941,-5613.75,0.00032876,14]
[332627958,1721374277951,-2591.99,0.00032876,14]
[332627959,1721374277961,-5613.75,0.00032876,14]
[332627960,1721374277971,-5613.75,0.00032876,14]
[332627961,1721374277981,-5613.75,0.00032876,14]
[332627962,1721374277991,-5613.75,0.00032876,14]
[332627963,1721374278001,-5613.75,0.00032876,14]
[332627964,1721374278011,-5613.75,0.00032876,14]
[332627965,1721374278021,-5613.75,0.00032876,14]
[332627966,1721374278031,-500.0,0.00032876,14]
[332627967,1721374278042,-500.0,0.00032876,14]
[332627968,1721374278051,-5613.98614573,0.00032876,14]
[332627969,1721374278061,-1670.33,0.00032876,14]
[332627970,1721374278071,-1110.3,0.00032876,14]
[332627971,1721374278081,-3295.96,0.00032876,14]
[332627972,1721374278090,-3203.29,0.00032876,14]
[332627973,1721374278101,-12713.43,0.00032876,14]
[332627974,1721374278111,-500.0,0.00032876,14]
[332627975,1721374278121,-9922.87,0.00032876,14]
[332627976,1721374278132,-12334.5,0.00032876,14]
[332627977,1721374278145,-1634.46,0.00032876,14]
[332627978,1721374278155,-2349.36,0.00032876,14]
[332627979,1721374278165,-1715.39,0.00032876,14]
[332627980,1721374278175,-500.0,0.00032876,14]
[332627981,1721374278186,-2218.75,0.00032876,14]
[332627982,1721374278196,-1842.31,0.00032876,14]
[332627983,1721374278205,-28938.05,0.00032876,14]
[332627984,1721374278216,-579.83,0.00032876,14]
[332627985,1721374278226,-500.0,0.00032876,14]
[332627986,1721374278236,-714.02,0.00032876,14]
[332627987,1721374278246,-2574.56,0.00032876,14]
[332627988,1721374278256,-6670.15,0.00032876,14]
[332627989,1721374278265,-9010.61,0.00032876,14]
[332627990,1721374278276,-500.0,0.00032876,14]
[332627991,1721374278286,-1645.9,0.00032876,14]
[332627992,1721374278296,-951.45,0.00032876,14]
[332627993,1721374278307,-1951.67,0.00032876,14]
[332627994,1721374278317,-500.0,0.00032876,14]
[332627995,1721374278327,-1689.61,0.00032876,14]
[332627996,1721374278338,-7708.62,0.00032876,14]
[332627997,1721374278350,-500.0,0.00032876,14]
[332627998,1721374278360,-5729.14,0.00032876,14]
[332627999,1721374278370,-1322.64,0.00032876,14]
[332628000,1721374278380,-1063.5,0.00032876,14]
[332628001,1721374278391,-1362.93,0.00032876,14]
[332628002,1721374278401,-924.96,0.00032876,14]
[332628003,1721374278411,-1299.48,0.00032876,14]
[332628004,1721374278421,-12312.14,0.00032876,14]
[332628005,1721374278431,-1762.71,0.00032876,14]
[332628006,1721374278441,-7146.83,0.00032876,14]
[332628007,1721374278450,-500.0,0.00032876,14]
[332628008,1721374278460,-977.45,0.00032876,14]
[332628009,1721374278471,-2889.83,0.00032876,14]
[332628010,1721374278480,-579.71,0.00032876,14]
[332628011,1721374278490,-500.0,0.00032876,14]
[332628012,1721374278500,-500.0,0.00032876,2]
[332628013,1721374278509,-4396.85,0.00032876,14]
[332628014,1721374278519,-7179.59,0.00032876,14]
[332628015,1721374278528,-502.88,0.00032876,14]
[332628016,1721374278538,-19689.3,0.00032876,14]
[332628017,1721374278548,-500.0,0.00032876,14]
[332628018,1721374278558,-500.0,0.00032876,14]
[332628019,1721374278579,-1149.54,0.00032876,14]
[332628020,1721374278591,-3000.95,0.00032876,14]
[332628021,1721374278602,-12544.8,0.00032876,14]
[332628022,1721374278613,-3150.65,0.00032876,14]
[332628023,1721374278623,-500.0,0.00032876,14]
[332628024,1721374278634,-2369.19,0.00032876,14]
[332628025,1721374278644,-1659.47,0.00032876,14]
[332628026,1721374278654,-500.0,0.00032876,14]
[332628027,1721374278665,-871.86,0.00032876,14]
[332628029,1721374278675,-447.75948847,0.00032876,14]
[332628030,1721374278685,-1257.98,0.00032876,14]
[332628031,1721374278695,-500.0,0.00032876,14]
[332628032,1721374278705,-500.0,0.00032876,14]
[332628033,1721374278716,-33865.98,0.00032876,14]
[332628034,1721374278727,-585.26,0.00032876,14]
[332628035,1721374278737,-2554.25,0.00032876,14]
[332628036,1721374278747,-500.0,0.00032876,14]
[332628037,1721374278757,-16039.8,0.00032876,14]
[332628038,1721374278767,-684.81,0.00032876,14]
[332628039,1721374278777,-500.0,0.00032876,14]
[332628040,1721374278788,-5448.92,0.00032876,14]
[332628041,1721374278798,-500.0,0.00032876,14]
[332628042,1721374278808,-7767.51,0.00032876,14]
[332628043,1721374278818,-500.0,0.00032876,14]
[332628044,1721374278828,-2290.4,0.00032876,14]
[332628045,1721374278838,-4546.82,0.00032876,14]
[332628046,1721374278849,-15549.95,0.00032876,14]
[332628047,1721374278859,-1115.03,0.00032876,14]
[332628048,1721374278868,-503.65380632,0.00032876,14]
[332628049,1721374278878,-1610.24,0.00032876,14]
[332628050,1721374278888,-500.0,0.00032876,14]
[332628051,1721374278899,-713.98,0.00032876,14]
[332628052,1721374278909,-846.65,0.00032876,14]
[332628053,1721374278919,-500.0,0.00032876,14]
[332628054,1721374278929,-748.23,0.00032876,14]
[332628055,1721374278939,-2566.11,0.00032876,14]
[332628056,1721374278949,-7374.06,0.00032876,14]
[332628057,1721374278960,-12833.28,0.00032876,14]
[332628058,1721374278971,-504.43,0.00032876,14]
[332628059,1721374278981,-2320.73,0.00032876,14]
[332628060,1721374278992,-1546.59,0.00032876,14]
[332628061,1721374279002,-1546.59,0.00032876,14]
[332628062,1721374279012,-17988.02,0.00032876,14]
[332628063,1721374279022,-1546.59,0.00032876,14]
[332628064,1721374279032,-1546.59,0.00032876,14]
[332628065,1721374279043,-1546.59,0.00032876,14]
[332628066,1721374279053,-1344.07,0.00032876,14]
[332628067,1721374279063,-1546.59,0.00032876,14]
[332628068,1721374279073,-500.0,0.00032876,14]
[332628069,1721374279083,-1546.59,0.00032876,14]
[332628070,1721374279094,-1546.59,0.00032876,14]
[332628071,1721374279106,-500.0,0.00032876,14]
[332628072,1721374279115,-1546.59,0.00032876,14]
[332628073,1721374279125,-6295.21,0.00032876,14]
[332628074,1721374279137,-1546.59,0.00032876,14]
[332628075,1721374279148,-1546.59,0.00032876,14]
[332628076,1721374279159,-500.0,0.00032876,14]
[332628077,1721374279169,-500.0,0.00032876,14]
[332628078,1721374279179,-13689.07,0.00032876,14]
[332628079,1721374279189,-4970.78,0.00032876,14]
[332628080,1721374279200,-3410.57,0.00032876,14]
[332628081,1721374279210,-1546.59,0.00032876,14]
[332628082,1721374279221,-2116.95,0.00032876,14]
[332628083,1721374279232,-2624.95,0.00032876,14]
[332628084,1721374279242,-1546.59,0.00032876,14]
[332628085,1721374279252,-1546.59,0.00032876,14]
[332628086,1721374279262,-1546.59,0.00032876,14]
[332628087,1721374279272,-1546.59,0.00032876,14]
[332628088,1721374279282,-500.0,0.00032876,14]
[332628089,1721374279293,-1546.59,0.00032876,14]
[332628090,1721374279303,-1546.59,0.00032876,14]
[332628091,1721374279313,-1546.59,0.00032876,14]
[332628092,1721374279323,-1546.59,0.00032876,14]
[332628093,1721374279333,-2812.54,0.00032876,14]
[332628094,1721374279343,-1546.59,0.00032876,14]
[332628095,1721374279353,-959.15,0.00032876,14]
[332628096,1721374279363,-1546.59,0.00032876,14]
[332628097,1721374279374,-1958.01,0.00032876,14]
[332628098,1721374279389,-1546.59,0.00032876,14]
[332628099,1721374279409,-1546.74355569,0.00032876,14]
[332628100,1721374279419,-543.11,0.00032876,14]
[332628101,1721374279430,-7256.02,0.00032876,14]
[332628102,1721374279440,-1843.94,0.00032876,14]
[332628103,1721374279450,-518.99,0.00032876,14]
[332628104,1721374279461,-9013.11,0.00032876,14]
[332628105,1721374279471,-500.0,0.00032876,14]
[332628106,1721374279482,-2361.69,0.00032876,14]
[332628107,1721374279492,-500.0,0.00032876,14]
[332628108,1721374279502,-5061.23,0.00032876,14]
[332628109,1721374279511,-2927.81,0.00032876,14]
[332628110,1721374279521,-500.0,0.00032876,14]
[332628111,1721374279531,-7140.38,0.00032876,14]
[332628112,1721374279541,-370.40755817,0.00032876,14]
[332628113,1721374279552,-3936.33,0.00032876,14]
[332628114,1721374279563,-3548.25,0.00032876,14]
[332628115,1721374279573,-7123.89,0.00032876,14]
[332628116,1721374279583,-500.0,0.00032876,14]
[332628117,1721374279594,-2418.71,0.00032876,14]
[332628118,1721374279606,-500.0,0.00032876,14]
[332628119,1721374279616,-1099.27,0.00032876,14]
[332628120,1721374279741,-720.78,0.00032876,14]
[332628121,1721374279751,-7161.68,0.00032876,14]
[332628122,1721374279761,-500.0,0.00032876,14]
[332628123,1721374279771,-4343.92,0.00032876,14]
[332628124,1721374279780,-1065.22,0.00032876,14]
[332628125,1721374279789,-500.0,0.00032876,14]
[332628126,1721374279799,-501.90225127,0.00032876,14]
[332628127,1721374279809,-508.16195748,0.00032876,14]
[332628128,1721374279818,-500.669054,0.00032876,14]
[332628129,1721374279828,-5135.62,0.00032876,14]
[332628130,1721374279838,-500.0,0.00032876,14]
[332628131,1721374279849,-16158.34,0.00032876,14]
[332628132,1721374279858,-500.0,0.00032876,14]
[332628133,1721374279867,-500.0,0.00032876,14]
[332628134,1721374279877,-2158.0,0.00032876,14]
[332628135,1721374279887,-500.0,0.00032876,14]
[332628136,1721374279896,-1764.68,0.00032876,14]
[332628137,1721374279906,-845.57,0.00032876,14]
[332628138,1721374279915,-500.0,0.00032876,14]
[332628139,1721374279925,-500.0,0.00032876,14]
[332628140,1721374279934,-5083.59,0.00032876,14]
[332628141,1721374279943,-921.29,0.00032876,14]
[332628142,1721374279953,-9737.63,0.00032876,14]
[332628143,1721374279963,-500.0,0.00032876,14]
[332628144,1721374279973,-500.0,0.00032876,14]
[332628145,1721374279983,-2072.08,0.00032876,14]
[332628146,1721374279993,-500.0,0.00032876,14]
[332628147,1721374280003,-1561.89,0.00032876,14]
[332628148,1721374280012,-4838.92,0.00032876,14]
[332628149,1721374280021,-235.74915975,0.00032876,14]
[332628150,1721374280031,-500.0,0.00032876,14]
[332628151,1721374280042,-1372.25,0.00032876,14]
[332628152,1721374280051,-6611.96,0.00032876,14]
[332628153,1721374280061,-500.0,0.00032876,2]
[332628154,1721374280071,-500.0,0.00032876,14]
[332628155,1721374280080,-719.18,0.00032876,14]
[332628156,1721374280090,-500.0,0.00032876,14]
[332628157,1721374280100,-500.0,0.00032876,14]
[332628158,1721374280109,-8105.6,0.00032876,14]
[332628159,1721374280120,-500.0,0.00032876,14]
[332628160,1721374280130,-500.0,0.00032876,14]
[332628161,1721374280140,-500.0,0.00032876,14]
[332628162,1721374280153,-4351.25,0.00032876,14]
[332628163,1721374280163,-673.49,0.00032876,14]
[332628164,1721374280173,-1381.41,0.00032876,14]
[332628165,1721374280186,-1724.11,0.00032876,14]
[332628166,1721374280197,-500.0,0.00032876,14]
[332628167,1721374280206,-2493.32,0.00032876,14]
[332628168,1721374280217,-4816.46,0.00032876,14]
[332628169,1721374280227,-809.11,0.00032876,14]
[332628170,1721374280237,-3427.99,0.00032876,14]
[332628171,1721374280246,-500.0,0.00032876,14]
[332628172,1721374280255,-500.0,0.00032876,14]
[332628173,1721374280265,-500.0,0.00032876,14]
[332628174,1721374280275,-500.0,0.00032876,14]
[332628175,1721374280285,-500.0,0.00032876,14]
[332628176,1721374280295,-500.0,0.00032876,14]
[332628177,1721374280304,-14395.48,0.00032876,14]
[332628178,1721374280313,-500.0,0.00032876,14]
[332628179,1721374280323,-500.0,0.00032876,14]
[332628180,1721374280333,-500.0,0.00032876,14]
[332628181,1721374280342,-500.0,0.00032876,14]
[332628182,1721374280354,-500.0,0.00032876,14]
[332628183,1721374280364,-500.0,0.00032876,14]
[332628184,1721374280374,-4458.07,0.00032876,14]
[332628185,1721374280388,-500.0,0.00032876,14]
[332628186,1721374280398,-500.0,0.00032876,14]
[332628187,1721374280408,-500.0,0.00032876,14]
[332628188,1721374280418,-500.0,0.00032876,14]
[332628189,1721374280428,-500.0,0.00032876,14]
[332628190,1721374280438,-500.0,0.00032876,14]
[332628191,1721374280447,-500.0,0.00032876,14]
[332628192,1721374280457,-5078.8,0.00032876,14]
[332628193,1721374280467,-2412.68,0.00032876,14]
[332628194,1721374280476,-500.0,0.00032876,14]
[332628195,1721374280485,-1021.19,0.00032876,14]
[332628196,1721374280495,-500.0,0.00032876,14]
[332628197,1721374280504,-500.0,0.00032876,14]
[332628198,1721374280514,-500.0,0.00032876,14]
[332628199,1721374280524,-500.0,0.00032876,14]
[332628200,1721374280534,-612.06,0.00032876,14]
[332628201,1721374280544,-500.0,0.00032876,14]
[332628202,1721374280553,-711.73,0.00032876,14]
[332628203,1721374280563,-986.06,0.00032876,14]
[332628204,1721374280573,-507.57459453,0.00032876,14]
[332628205,1721374280583,-7014.28,0.00032876,14]
[332628206,1721374280592,-579.04,0.00032876,14]
[332628207,1721374280601,-1084.8,0.00032876,14]
[332628208,1721374280611,-3268.33,0.00032876,14]
[332628209,1721374280621,-500.0,0.00032876,14]
[332628210,1721374280630,-500.0,0.00032876,14]
[332628211,1721374280639,-9000.65,0.00032876,14]
[332628212,1721374280649,-4940.01,0.00032876,14]
[332628213,1721374280658,-4849.94,0.00032876,14]
[332628214,1721374280668,-9236.16,0.00032876,14]
[332628215,1721374280677,-1329.79,0.00032876,14]
[332628216,1721374280686,-500.0,0.00032876,14]
[332628217,1721374280696,-1759.67,0.00032876,14]
[332628218,1721374280706,-500.0,0.00032876,14]
[332628219,1721374280715,-8561.66,0.00032876,14]
[332628220,1721374280725,-500.0,0.00032876,14]
[332628221,1721374280735,-500.0,0.00032876,14]
[332628222,1721374280744,-500.0,0.00032876,14]
[332628223,1721374280753,-500.0,0.00032876,14]
[332628224,1721374280763,-7088.72,0.00032876,14]
[332628225,1721374280772,-9053.07,0.00032876,14]
[332628226,1721374280782,-7365.65,0.00032876,14]
[332628227,1721374280791,-1387.6,0.00032876,14]
[332628228,1721374280800,-1804.67,0.00032876,14]
[332628229,1721374280811,-3770.05,0.00032876,14]
[332628230,1721374280820,-500.0,0.00032876,14]
[332628231,1721374280829,-687.74,0.00032876,14]
[332628232,1721374280838,-1637.67,0.00032876,14]
[332628233,1721374280848,-500.0,0.00032876,14]
[332628234,1721374280857,-2940.65,0.00032876,14]
[332628235,1721374280866,-500.0,0.00032876,14]
[332628236,1721374280876,-500.0,0.00032876,14]
[332628237,1721374280885,-500.0,0.00032876,14]
[332628238,1721374280895,-6733.43,0.00032876,14]
[332628239,1721374280904,-500.0,0.00032876,14]
[332628240,1721374280914,-500.0,0.00032876,14]
[332628241,1721374280924,-1179.7,0.00032876,14]
[332628242,1721374280934,-7685.85,0.00032876,14]
[332628243,1721374280944,-500.0,0.00032876,14]
[332628244,1721374280954,-1025.91,0.00032876,14]
[332628245,1721374280964,-673.81,0.00032876,14]
[332628246,1721374280974,-5069.82,0.00032876,14]
[332628247,1721374280985,-3890.22,0.00032876,14]
[332628248,1721374280995,-594.53,0.00032876,14]
[332628249,1721374281006,-3237.13,0.00032876,14]
[332628250,1721374281016,-1055.49,0.00032876,14]
[332628251,1721374281027,-500.0,0.00032876,14]
[332628252,1721374281037,-500.0,0.00032876,14]
[332628253,1721374281050,-500.0,0.00032876,14]
[332628254,1721374281060,-2282.97,0.00032876,14]
[332628255,1721374281069,-2071.37,0.00032876,2]
[332628256,1721374281079,-500.0,0.00032876,14]
[332628257,1721374281089,-5864.93,0.00032876,14]
[332628258,1721374281102,-500.0,0.00032876,14]
[332628259,1721374281113,-2285.44,0.00032876,14]
[332628260,1721374281123,-1204.2,0.00032876,14]
[332628261,1721374281133,-304.23184523,0.00032876,14]
[332628262,1721374281148,-500.0,0.00032876,14]
[332628263,1721374281158,-6802.64,0.00032876,14]
[332628264,1721374281168,-1957.81,0.00032876,14]
[332628265,1721374281178,-3588.33,0.00032876,14]
[332628266,1721374281189,-500.0,0.00032876,14]
[332628267,1721374281199,-500.0,0.00032876,14]
[332628268,1721374281209,-810.81,0.00032876,14]
[332628269,1721374281221,-500.0,0.00032876,14]
[332628270,1721374281232,-500.0,0.00032876,14]
[332628271,1721374281242,-500.0,0.00032876,14]
[332628272,1721374281251,-1244.68,0.00032876,14]
[332628273,1721374281262,-500.0,0.00032876,14]
[332628274,1721374281272,-500.0,0.00032876,14]
[332628275,1721374281282,-500.0,0.00032876,14]
[332628276,1721374281293,-500.0,0.00032876,14]
[332628277,1721374281303,-500.0,0.00032876,14]
[332628278,1721374281314,-649.91043975,0.00032876,14]
[332628279,1721374281324,-500.0,0.00032876,14]
[332628280,1721374281334,-500.0,0.00032876,14]
[332628281,1721374281344,-844.39,0.00032876,14]
[332628282,1721374281354,-500.0,0.00032876,14]
[332628283,1721374281364,-204.83303794,0.00032876,14]
[332628284,1721374281374,-500.0,0.00032876,14]
[332628285,1721374281384,-500.0,0.00032876,14]
[332628286,1721374281395,-500.0,0.00032876,14]
[332628287,1721374281406,-500.0,0.00032876,14]
[332628288,1721374281417,-500.0,0.00032876,14]
[332628289,1721374281427,-500.0,0.00032876,14]
[332628290,1721374281437,-500.0,0.00032876,14]
[332628291,1721374281448,-1951.81,0.00032876,14]
[332628292,1721374281458,-500.0,0.00032876,14]
[332628293,1721374281468,-597.14953151,0.00032876,14]
[332628294,1721374281479,-854.9,0.00032876,14]
[332628295,1721374281489,-3906.45,0.00032876,14]
[332628296,1721374281499,-3507.5,0.00032876,14]
[332628297,1721374281510,-865.64,0.00032876,14]
[332628298,1721374281520,-2603.35,0.00032876,14]
[332628299,1721374281530,-1805.65,0.00032876,14]
[332628300,1721374281540,-500.0,0.00032876,14]
[332628301,1721374281551,-1159.4,0.00032876,14]
[332628302,1721374281562,-6200.88,0.00032876,14]
[332628303,1721374281572,-500.0,0.00032876,14]
[332628304,1721374281582,-500.0,0.00032876,14]
[332628305,1721374281592,-896.2,0.00032876,14]
[332628306,1721374281603,-500.0,0.00032876,14]
[332628307,1721374281613,-2326.61,0.00032876,14]
[332628308,1721374281623,-5674.73,0.00032876,14]
[332628309,1721374281635,-1819.85,0.00032876,14]
[332628310,1721374281645,-500.0,0.00032876,14]
[332628311,1721374281654,-15551.55,0.00032876,14]
[332628312,1721374281664,-2542.41,0.00032876,14]
[332628313,1721374281674,-500.0,0.00032876,14]
[332628314,1721374281684,-1130.18,0.00032876,14]
[332628315,1721374281694,-3436.5,0.00032876,14]
[332628316,1721374281704,-500.0,0.00032876,14]
[332628317,1721374281714,-500.0,0.00032876,14]
[332628318,1721374281724,-12275.18,0.00032876,14]
[332628319,1721374281734,-500.0,0.00032876,14]
[332628320,1721374281744,-500.0,0.00032876,14]
[332628321,1721374281754,-500.0,0.00032876,14]
[332628322,1721374281763,-3712.54,0.00032876,14]
[332628323,1721374281773,-540.53,0.00032876,14]
[332628324,1721374281783,-7174.87,0.00032876,14]
[332628325,1721374281792,-1873.05,0.00032876,14]
[332628326,1721374281802,-609.14,0.00032876,14]
[332628327,1721374281812,-500.0,0.00032876,14]
[332628328,1721374281822,-20243.8,0.00032876,14]
[332628329,1721374281832,-500.0,0.00032876,14]
[332628330,1721374281842,-1743.57,0.00032876,14]
[332628331,1721374281853,-794.64,0.00032876,14]
[332628332,1721374281863,-500.0,0.00032876,14]
[332628333,1721374281873,-3792.36,0.00032876,14]
[332628334,1721374281883,-5828.93,0.00032876,14]
[332628335,1721374281893,-522.89,0.00032876,14]
[332628336,1721374281902,-500.0,0.00032876,14]
[332628337,1721374281912,-5889.56,0.00032876,14]
[332628338,1721374281922,-500.0,0.00032876,14]
[332628339,1721374281932,-500.0,0.00032876,14]
[332628340,1721374281942,-525.83,0.00032876,14]
[332628341,1721374281952,-502.83665814,0.00032876,14]
[332628342,1721374281962,-500.0,0.00032876,14]
[332628343,1721374281973,-11019.54,0.00032876,14]
[332628344,1721374281983,-10947.61,0.00032876,14]
[332628345,1721374281993,-5912.02,0.00032876,14]
[332628346,1721374282003,-500.0,0.00032876,14]
[332628347,1721374282013,-500.0,0.00032876,14]
[332628348,1721374282022,-500.0,0.00032876,14]
[332628349,1721374282032,-2246.16,0.00032876,14]
[332628350,1721374282042,-500.0,0.00032876,14]
[332628351,1721374282052,-8229.51,0.00032876,14]
[332628352,1721374282062,-4655.89,0.00032876,14]
[332628353,1721374282072,-500.0,0.00032876,14]
[332628354,1721374282084,-1033.47,0.00032876,14]
[332628355,1721374282095,-1465.61,0.00032876,14]
[332628356,1721374282106,-1464.16,0.00032876,14]
[332628357,1721374282116,-4196.57,0.00032876,14]
[332628358,1721374282125,-705.02,0.00032876,14]
[332628359,1721374282136,-5345.19,0.00032876,14]
[332628360,1721374282154,-1910.19,0.00032876,14]
[332628361,1721374282164,-500.0,0.00032876,14]
[332628362,1721374282177,-1194.16,0.00032876,14]
[332628363,1721374282188,-500.0,0.00032876,14]
[332628364,1721374282199,-573.17,0.00032876,14]
[332628365,1721374282209,-500.0,0.00032876,14]
[332628366,1721374282219,-500.0,0.00032876,14]
[332628367,1721374282228,-10933.25,0.00032876,14]
[332628368,1721374282238,-500.0,0.00032876,14]
[332628369,1721374282247,-1409.33,0.00032876,14]
[332628370,1721374282257,-3674.93,0.00032876,14]
[332628371,1721374282266,-500.0,0.00032876,14]
[332628372,1721374282275,-3354.51,0.00032876,14]
[332628373,1721374282285,-1154.96,0.00032876,14]
[332628374,1721374282295,-4811.1,0.00032876,14]
[332628375,1721374282304,-1405.5,0.00032876,14]
[332628376,1721374282314,-735.83,0.00032876,14]
[332628377,1721374282324,-621.5,0.00032876,14]
[332628378,1721374282334,-282.48206149,0.00032876,14]
[332628379,1721374282343,-500.0,0.00032876,14]
[332628380,1721374282354,-1524.71,0.00032876,14]
[332628381,1721374282364,-1682.97,0.00032876,14]
[332628382,1721374282373,-3837.86,0.00032876,14]
[332628383,1721374282384,-500.0,0.00032876,14]
[332628384,1721374282394,-5839.3,0.00032876,14]
[332628385,1721374282404,-500.0,0.00032876,14]
[332628386,1721374282414,-1215.13,0.00032876,14]
[332628387,1721374282424,-500.0,0.00032876,14]
[332628388,1721374282433,-5878.24,0.00032876,14]
[332628389,1721374282443,-500.0,0.00032876,14]
[332628390,1721374282453,-500.0,0.00032876,14]
[332628391,1721374282462,-263.43516037,0.00032876,14]
[332628392,1721374282472,-500.0,0.00032876,14]
[332628393,1721374282482,-1263.94,0.00032876,14]
[332628394,1721374282491,-884.11,0.00032876,14]
[332628395,1721374282500,-500.0,0.00032876,14]
[332628396,1721374282510,-500.0,0.00032876,14]
[332628397,1721374282520,-500.0,0.00032876,14]
[332628398,1721374282529,-500.0,0.00032876,14]
[332628399,1721374282539,-1861.13,0.00032876,14]
[332628400,1721374282548,-500.0,0.00032876,14]
[332628401,1721374282557,-500.0,0.00032876,14]
[332628402,1721374282567,-4030.15,0.00032876,14]